fUST/lending_fUST_20240704
["ID","MTS","AMOUNT","RATE_DAILY","PERIOD"]
[331113132,1720086646958,-1166.76,0.0001468,2]
[331113133,1720086646967,-500.0,0.0001468,2]
[331113134,1720086646979,-500.0,0.0001468,2]
[331113135,1720086646991,-712.66,0.0001468,2]
[331113136,1720086647001,-835.25,0.0001468,2]
[331113137,1720086647011,-656.39,0.0001468,2]
[331113138,1720086647020,-500.0,0.0001468,2]
[331113139,1720086647029,-500.0,0.0001468,2]
[331113140,1720086647038,-500.0,0.0001468,2]
[331113141,1720086647148,-2618.93,0.0001468,2]
[331113142,1720086647158,-500.0,0.0001468,2]
[331113143,1720086647168,-500.0,0.0001468,2]
[331113144,1720086647178,-500.0,0.0001468,2]
[331113145,1720086647187,-500.0,0.0001468,2]
[331113146,1720086647196,-653.06,0.0001468,2]
[331113147,1720086647206,-417.065872,0.0001468,2]
[331113148,1720086647216,-1109.14,0.0001468,2]
[331113149,1720086647226,-676.7,0.0001468,2]
[331113150,1720086647235,-417.065872,0.0001468,2]
[331113151,1720086647244,-500.0,0.0001468,2]
[331113152,1720086647256,-1035.57,0.0001468,2]
[331113153,1720086647265,-500.0,0.0001468,2]
[331113154,1720086647274,-500.0,0.0001468,2]
[331113155,1720086647284,-4679.41,0.0001468,2]
[331113156,1720086647294,-500.0,0.0001468,2]
[331113157,1720086647303,-500.0,0.0001468,2]
[331113158,1720086647313,-500.0,0.0001468,2]
[331113159,1720086647322,-500.0,0.0001468,2]
[331113160,1720086647334,-500.0,0.0001468,2]
[331113161,1720086647344,-500.0,0.0001468,2]
[331113162,1720086647354,-1849.64,0.0001468,2]
[331113163,1720086647364,-500.0,0.0001468,2]
[331113164,1720086647374,-776.85,0.0001468,2]
[331113165,1720086647384,-500.0,0.0001468,2]
[331113166,1720086647394,-2509.95,0.0001468,2]
[331113167,1720086647403,-1260.96,0.0001468,2]
[331113168,1720086647412,-151.0,0.0001468,2]
[331113169,1720086647422,-500.0,0.0001468,2]
[331113170,1720086647432,-500.0,0.0001468,2]
[331113171,1720086647441,-151.0,0.0001468,2]
[331113172,1720086647451,-1120.86,0.0001468,2]
[331113173,1720086647460,-151.0,0.0001468,2]
[331113174,1720086647470,-500.0,0.0001468,2]
[331113175,1720086647479,-500.0,0.0001468,2]
[331113176,1720086647489,-151.0,0.0001468,2]
[331113177,1720086647499,-151.0,0.0001468,2]
[331113178,1720086647508,-958.75,0.0001468,2]
[331113179,1720086647518,-1607.060044,0.0001468,2]
[331113180,1720086647527,-1607.060044,0.0001468,2]
[331113181,1720086647537,-533.97,0.0001468,2]
[331113182,1720086647548,-4872.74,0.0001468,2]
[331113183,1720086647557,-601.89,0.00014681,2]
[331113184,1720086647566,-500.0,0.00014681,2]
[331113185,1720086647576,-708.25,0.00014681,2]
[331113186,1720086647585,-500.0,0.00014681,2]
[331113187,1720086647597,-500.0,0.00014681,2]
[331113188,1720086647606,-500.0,0.00014681,2]
[331113189,1720086647615,-500.0,0.00014681,2]
[331113190,1720086647625,-500.0,0.00014681,2]
[331113191,1720086647634,-500.0,0.00014681,2]
[331113192,1720086647644,-500.0,0.00014681,2]
[331113193,1720086647654,-500.0,0.00014681,2]
[331113194,1720086647663,-383.72479419,0.00014681,2]
[331113195,1720086647673,-514.79414028,0.00014681,2]
[331113196,1720086647682,-500.0,0.00014681,2]
[331113197,1720086647691,-500.0,0.00014681,2]
[331113198,1720086647701,-500.0,0.00014681,2]
[331113199,1720086647710,-500.0,0.00014681,2]
[331113200,1720086647719,-500.0,0.00014681,2]
[331113201,1720086647728,-500.0,0.00014681,2]
[331113202,1720086647737,-500.0,0.00014681,2]
[331113203,1720086647746,-500.0,0.00014681,2]
[331113204,1720086647756,-500.0,0.00014681,2]
[331113205,1720086647766,-500.0,0.00014681,2]
[331113206,1720086647775,-500.0,0.00014681,2]
[331113207,1720086647784,-500.0,0.00014681,2]
[331113208,1720086647794,-500.0,0.00014681,2]
[331113209,1720086647803,-500.0,0.00014681,2]
[331113210,1720086647812,-158.213752,0.00014681,2]
[331113211,1720086647822,-227.65847582,0.00014681,2]
[331113212,1720086647831,-500.0,0.00014681,2]
[331113213,1720086647841,-500.0,0.00014681,2]
[331113214,1720086647850,-521.59,0.00014681,2]
[331113215,1720086647860,-153.371644,0.00014681,2]
[331113216,1720086647869,-500.0,0.00014681,2]
[331113217,1720086647879,-500.0,0.00014681,2]
[331113218,1720086647888,-500.0,0.00014681,2]
[331113219,1720086647897,-500.0,0.00014681,2]
[331113220,1720086647907,-500.0,0.00014681,2]
[331113221,1720086647917,-151.0,0.00014681,2]
[331113222,1720086647927,-151.0,0.00014681,2]
[331113223,1720086647944,-282.88312774,0.00014681,2]
[331113224,1720086647954,-151.0,0.00014681,2]
[331113225,1720086647964,-310.0,0.00014681,2]
[331113226,1720086647976,-310.0,0.00014681,2]
[331113227,1720086647986,-457.699208,0.00014681,2]
[331113228,1720086647996,-500.0,0.00014681,2]
[331113229,1720086648006,-500.0,0.00014681,2]
[331113230,1720086648017,-500.0,0.00014681,2]
[331113231,1720086648027,-642.37189601,0.00014681,2]
[331113232,1720086648036,-500.0,0.00014681,2]
[331113233,1720086648046,-500.0,0.00014681,2]
[331113234,1720086648056,-835.25,0.00014681,2]
[331113235,1720086648066,-151.0,0.00014681,2]
[331113236,1720086648076,-510.31188349,0.00014681,2]
[331113237,1720086648085,-500.0,0.00014681,2]
[331113238,1720086648094,-500.0,0.00014681,2]
[331113239,1720086648105,-500.0,0.00014681,2]
[331113240,1720086648114,-500.16890145,0.00014681,2]
[331113241,1720086648123,-500.0,0.00014681,2]
[331113242,1720086648132,-500.0,0.00014681,2]
[331113243,1720086648142,-500.0,0.00014681,2]
[331113244,1720086648151,-500.0,0.00014681,2]
[331113245,1720086648159,-500.0,0.00014681,2]
[331113246,1720086648169,-500.0,0.00014681,2]
[331113247,1720086648178,-500.0,0.00014681,2]
[331113248,1720086648187,-500.0,0.00014681,2]
[331113249,1720086648196,-500.0,0.00014681,2]
[331113250,1720086648206,-500.0,0.00014681,2]
[331113251,1720086648215,-500.0,0.00014681,2]
[331113252,1720086648225,-163.794828,0.00014682,2]
[331113253,1720086648234,-159.244579,0.00014682,2]
[331113254,1720086648243,-162.034048,0.00014682,2]
[331113255,1720086648252,-160.013851,0.00014682,2]
[331113256,1720086648262,-519.1,0.00014682,2]
[331113257,1720086648271,-151.0,0.00014682,2]
[331113258,1720086648280,-500.0,0.00014682,2]
[331113259,1720086648289,-500.0,0.00014682,2]
[331113260,1720086648299,-605.42,0.00014682,2]
[331113261,1720086648308,-608.09,0.00014682,2]
[331113262,1720086648318,-500.0,0.00014682,2]
[331113263,1720086648327,-500.0,0.00014682,2]
[331113264,1720086648336,-566.44812004,0.00014682,2]
[331113265,1720086648346,-500.0,0.00014682,2]
[331113266,1720086648356,-500.0,0.00014682,2]
[331113267,1720086648365,-500.0,0.00014682,2]
[331113268,1720086648375,-500.0,0.00014682,2]
[331113269,1720086648385,-504.49121328,0.00014682,2]
[331113270,1720086648395,-151.0,0.00014682,2]
[331113271,1720086648405,-156.57167,0.00014682,2]
[331113272,1720086648414,-3921.2,0.00014683,2]
[331113273,1720086648424,-436.171564,0.00014683,2]
[331113274,1720086648434,-436.171564,0.00014683,2]
[331113275,1720086648444,-247.928671,0.00014683,2]
[331113276,1720086648454,-834.12,0.00014683,2]
[331113277,1720086648464,-574.87,0.00014683,2]
[331113278,1720086648474,-835.25,0.00014688,2]
[331113279,1720086648483,-500.0,0.00014689,2]
[331113280,1720086648493,-500.0,0.00014689,2]
[331113281,1720086648504,-185.89842821,0.00014689,2]
[331113282,1720086648513,-9952.87,0.0001469,2]
[331113283,1720086648524,-500.0,0.0001469,2]
[331113284,1720086648534,-500.0,0.00014694,2]
[331113285,1720086648543,-400.73215011,0.00014694,2]
[331113286,1720086648552,-5040.88,0.00014694,2]
[331113287,1720086648562,-834.42,0.00014694,2]
[331113288,1720086648572,-579.93,0.00014694,2]
[331113289,1720086648581,-718.66,0.00014694,2]
[331113290,1720086648590,-4899.51,0.00014694,2]
[331113291,1720086648599,-2569.55,0.00014694,2]
[331113292,1720086648610,-500.0,0.000147,2]
[331113293,1720086648619,-500.0,0.00014703,2]
[331113294,1720086648630,-8483.37,0.00014703,2]
[331113295,1720086648639,-500.38,0.00014703,2]
[331113296,1720086648649,-151.0,0.00014703,2]
[331113297,1720086648659,-208.048076,0.00014703,2]
[331113298,1720086648669,-208.048076,0.00014703,2]
[331113299,1720086648679,-700.08,0.00014703,2]
[331113300,1720086648688,-824.97,0.00014703,2]
[331113301,1720086648697,-500.0,0.00014703,2]
[331113302,1720086648706,-888.25,0.00014703,2]
[331113303,1720086648715,-417.065872,0.00014703,2]
[331113304,1720086648724,-417.065872,0.00014703,2]
[331113305,1720086648734,-500.0,0.00014703,2]
[331113306,1720086648743,-151.0,0.00014703,2]
[331113307,1720086648754,-151.0,0.00014703,2]
[331113308,1720086648765,-151.0,0.00014703,2]
[331113309,1720086648776,-151.0,0.00014703,2]
[331113310,1720086648785,-1607.060044,0.00014703,2]
[331113311,1720086648796,-1607.060044,0.00014703,2]
[331113312,1720086648806,-835.25,0.00014704,2]
[331113313,1720086648816,-151.0,0.00014737,2]
[331113314,1720086648826,-151.0,0.00014737,2]
[331113315,1720086648834,-789.77698638,0.00014745,2]
[331113316,1720086648844,-500.0,0.0001475,2]
[331113317,1720086648853,-835.25,0.00014793,2]
[331113318,1720086648862,-1500.0,0.00014794,2]
[331113319,1720086648872,-3078.51196359,0.00014794,2]
[331113320,1720086648881,-789.77698638,0.00014794,2]
[331113321,1720086648891,-500.0,0.000148,2]
[331113322,1720086648900,-151.0,0.00014836,2]
[331113323,1720086648910,-200.779055,0.00014836,2]
[331113324,1720086648920,-158.355445,0.00014846,2]
[331113325,1720086648931,-151.0,0.00014846,2]
[331113326,1720086648942,-199.465859,0.00014846,2]
[331113327,1720086648958,-208.048076,0.00014846,2]
[331113328,1720086648967,-208.048076,0.00014846,2]
[331113329,1720086648981,-151.0,0.00014846,2]
[331113330,1720086648990,-500.0,0.0001485,2]
[331113331,1720086649000,-500.0,0.00014876,2]
[331113332,1720086649008,-500.0,0.000149,2]
[331113333,1720086649018,-20023.44849374,0.00014944,2]
[331113334,1720086649027,-835.25,0.00014945,2]
[331113335,1720086649037,-500.0,0.00014945,2]
[331113336,1720086649047,-500.0,0.00014945,2]
[331113337,1720086649056,-500.0,0.00014945,2]
[331113338,1720086649065,-500.0,0.00014945,2]
[331113339,1720086649074,-500.0,0.00014945,2]
[331113340,1720086649084,-2415.85,0.00014945,2]
[331113341,1720086649093,-500.0,0.00014945,2]
[331113342,1720086649102,-767.41,0.00014945,2]
[331113343,1720086649111,-1232.60105302,0.00014945,2]
[331113344,1720086649237,-13399.88894698,0.00014945,2]
[331113345,1720086649252,-500.0,0.00014945,2]
[331113346,1720086649262,-964.58,0.00014954,2]
[331113347,1720086649271,-500.0,0.00014954,2]
[331113348,1720086649280,-539.02833704,0.00014954,2]
[331113349,1720086649294,-500.0,0.00014954,2]
[331113350,1720086649311,-1301.84,0.00014954,2]
[331113351,1720086649320,-500.0,0.00014954,2]
[331113352,1720086649434,-500.0,0.00014954,2]
[331113353,1720086649444,-829.69,0.00014954,2]
[331113354,1720086649454,-1166.76,0.00014954,2]
[331113355,1720086649463,-500.0,0.00014954,2]
[331113356,1720086649473,-500.0,0.00014954,2]
[331113357,1720086649483,-712.66,0.00014954,2]
[331113358,1720086649492,-656.39,0.00014954,2]
[331113359,1720086649503,-500.0,0.00014954,2]
[331113360,1720086649512,-500.0,0.00014954,2]
[331113361,1720086649522,-500.0,0.00014954,2]
[331113362,1720086649532,-2618.93,0.00014954,2]
[331113363,1720086649542,-500.0,0.00014954,2]
[331113364,1720086649552,-500.0,0.00014954,2]
[331113365,1720086649562,-500.0,0.00014954,2]
[331113366,1720086649571,-653.06,0.00014954,2]
[331113367,1720086649581,-676.7,0.00014954,2]
[331113368,1720086649590,-1109.14,0.00014954,2]
[331113369,1720086649599,-484.88004315,0.00014954,2]
[331113370,1720086649608,-1035.57,0.00014954,2]
[331113371,1720086649616,-500.0,0.00014954,2]
[331113372,1720086649625,-500.0,0.00014954,2]
[331113373,1720086649634,-4679.41,0.00014954,2]
[331113374,1720086649643,-500.0,0.00014954,2]
[331113375,1720086649652,-500.0,0.00014954,2]
[331113376,1720086649661,-500.0,0.00014954,2]
[331113377,1720086649670,-583.99058837,0.00014954,2]
[331113378,1720086649678,-500.0,0.00014954,2]
[331113379,1720086649687,-500.0,0.00014954,2]
[331113380,1720086649696,-1849.64,0.00014954,2]
[331113381,1720086649705,-500.0,0.00014954,2]
[331113382,1720086649714,-776.85,0.00014954,2]
[331113383,1720086649724,-500.0,0.00014954,2]
[331113384,1720086649733,-2509.95,0.00014954,2]
[331113385,1720086649742,-436.171564,0.00014954,2]
[331113386,1720086649751,-1260.96,0.00014954,2]
[331113387,1720086649761,-436.171564,0.00014954,2]
[331113388,1720086649770,-500.0,0.00014954,2]
[331113389,1720086649779,-174.4498927,0.00014954,2]
[331113390,1720086649789,-1120.86,0.00014954,2]
[331113391,1720086649798,-500.0,0.00014954,2]
[331113392,1720086649806,-500.0,0.00014954,2]
[331113393,1720086649815,-958.75,0.00014954,2]
[331113394,1720086649824,-533.97,0.00014954,2]
[331113395,1720086649833,-4872.74,0.00014954,2]
[331113396,1720086649842,-601.89,0.00014955,2]
[331113397,1720086649851,-500.0,0.00014955,2]
[331113398,1720086649860,-708.25,0.00014955,2]
[331113399,1720086649869,-500.0,0.00014955,2]
[331113400,1720086649878,-500.0,0.00014955,2]
[331113401,1720086649887,-500.0,0.00014955,2]
[331113402,1720086649896,-500.0,0.00014955,2]
[331113403,1720086649906,-500.0,0.00014955,2]
[331113404,1720086649916,-500.0,0.00014955,2]
[331113405,1720086649925,-500.0,0.00014955,2]
[331113406,1720086649937,-500.0,0.00014955,2]
[331113407,1720086649947,-500.0,0.00014955,2]
[331113408,1720086649956,-500.0,0.00014955,2]
[331113409,1720086649965,-500.0,0.00014955,2]
[331113410,1720086649980,-151.0,0.00014955,2]
[331113411,1720086649989,-500.0,0.00014955,2]
[331113412,1720086649999,-500.0,0.00014955,2]
[331113413,1720086650008,-500.0,0.00014955,2]
[331113414,1720086650020,-500.0,0.00014955,2]
[331113415,1720086650030,-445.85910362,0.00014955,2]
[331113416,1720086650040,-500.0,0.00014955,2]
[331113417,1720086650050,-500.0,0.00014955,2]
[331113418,1720086650058,-500.0,0.00014955,2]
[331113419,1720086650067,-500.0,0.00014955,2]
[331113420,1720086650077,-500.0,0.00014955,2]
[331113421,1720086650086,-500.0,0.00014955,2]
[331113422,1720086650095,-521.59,0.00014955,2]
[331113423,1720086650104,-500.0,0.00014955,2]
[331113424,1720086650115,-500.0,0.00014955,2]
[331113425,1720086650124,-500.0,0.00014955,2]
[331113426,1720086650134,-500.0,0.00014955,2]
[331113427,1720086650143,-500.0,0.00014955,2]
[331113428,1720086650153,-500.0,0.00014955,2]
[331113429,1720086650163,-338.96349667,0.00014955,2]
[331113430,1720086650172,-500.0,0.00014955,2]
[331113431,1720086650181,-561.68146604,0.00014955,2]
[331113432,1720086650191,-500.0,0.00014955,2]
[331113433,1720086650200,-835.25,0.00014955,2]
[331113434,1720086650209,-513.37416286,0.00014955,2]
[331113435,1720086650219,-500.0,0.00014955,2]
[331113436,1720086650229,-500.0,0.00014955,2]
[331113437,1720086650239,-500.0,0.00014955,2]
[331113438,1720086650248,-417.065872,0.00014955,2]
[331113439,1720086650258,-417.065872,0.00014955,2]
[331113440,1720086650268,-500.0,0.00014955,2]
[331113441,1720086650277,-500.0,0.00014955,2]
[331113442,1720086650287,-500.0,0.00014955,2]
[331113443,1720086650296,-151.0,0.00014955,2]
[331113444,1720086650306,-500.0,0.00014955,2]
[331113445,1720086650315,-151.0,0.00014955,2]
[331113446,1720086650325,-151.0,0.00014955,2]
[331113447,1720086650335,-151.0,0.00014955,2]
[331113448,1720086650344,-1607.060044,0.00014955,2]
[331113449,1720086650354,-1607.060044,0.00014955,2]
[331113450,1720086650363,-500.0,0.00014955,2]
[331113451,1720086650372,-500.0,0.00014955,2]
[331113452,1720086650382,-500.0,0.00014955,2]
[331113453,1720086650391,-519.1,0.00014956,2]
[331113454,1720086650400,-500.0,0.00014956,2]
[331113455,1720086650410,-500.0,0.00014956,2]
[331113456,1720086650419,-605.42,0.00014956,2]
[331113457,1720086650428,-608.09,0.00014956,2]
[331113458,1720086650437,-500.0,0.00014956,2]
[331113459,1720086650447,-500.0,0.00014956,2]
[331113460,1720086650456,-500.0,0.00014956,2]
[331113461,1720086650465,-500.0,0.00014956,2]
[331113462,1720086650474,-500.0,0.00014956,2]
[331113463,1720086650485,-500.0,0.00014956,2]
[331113464,1720086650494,-835.25,0.00014956,2]
[331113465,1720086650504,-155.552447,0.00014957,2]
[331113466,1720086650514,-151.0,0.00014957,2]
[331113467,1720086650523,-208.048076,0.00014957,2]
[331113468,1720086650532,-208.048076,0.00014957,2]
[331113469,1720086650541,-3921.2,0.00014957,2]
[331113470,1720086650550,-834.12,0.00014957,2]
[331113471,1720086650559,-574.87,0.00014957,2]
[331113472,1720086650569,-151.984332,0.00014963,2]
[331113473,1720086650578,-500.0,0.00014963,2]
[331113474,1720086650587,-500.0,0.00014963,2]
[331113475,1720086650597,-9952.87,0.00014964,2]
[331113476,1720086650608,-835.25,0.00014967,2]
[331113477,1720086650617,-500.0,0.00014968,2]
[331113478,1720086650627,-5040.88,0.00014968,2]
[331113479,1720086650636,-834.42,0.00014968,2]
[331113480,1720086650645,-579.93,0.00014968,2]
[331113481,1720086650654,-718.66,0.00014968,2]
[331113482,1720086650664,-4899.51,0.00014968,2]
[331113483,1720086650673,-2569.55,0.00014968,2]
[331113484,1720086650682,-500.0,0.00014977,2]
[331113485,1720086650692,-8483.37,0.00014977,2]
[331113486,1720086650701,-500.38,0.00014977,2]
[331113487,1720086650710,-700.08,0.00014977,2]
[331113488,1720086650719,-824.97,0.00014977,2]
[331113489,1720086650728,-500.0,0.00014977,2]
[331113490,1720086650738,-888.25,0.00014977,2]
[331113491,1720086650747,-500.0,0.00014977,2]
[331113492,1720086650758,-158.59027,0.00014978,2]
[331113493,1720086650767,-835.25,0.00014997,2]
[331113494,1720086650777,-9614.54817379,0.00014998,2]
[331113495,1720086650786,-6076.9012323,0.00014998,2]
[331113496,1720086650796,-11132.49087476,0.00014998,2]
[331113497,1720086650805,-1463.29635585,0.00014999,2]
[331113498,1720086650814,-1634.59229075,0.00014999,2]
[331113499,1720086650824,-2118.3618334,0.00014999,2]
[331113500,1720086650833,-4710.72024946,0.00014999,2]
[331113501,1720086650843,-3137.77932824,0.00014999,2]
[331113502,1720086650851,-166.108656,0.00014999,2]
[331113503,1720086650860,-2126.25063044,0.00014999,2]
[331113504,1720086650870,-1434.31145513,0.00014999,2]
[331113505,1720086650879,-436.171564,0.00014999,2]
[331113506,1720086650888,-436.171564,0.00014999,2]
[331113507,1720086650897,-1351.9774817,0.00014999,2]
[331113508,1720086650906,-395.4705443,0.00015,2]
[331113509,1720086650916,-2420.55776569,0.00015,2]
[331113510,1720086650925,-808.0087546,0.00015,2]
[331113511,1720086650936,-1039.06688618,0.00015,2]
[331113512,1720086650951,-948.84245203,0.00015,2]
[331113513,1720086650961,-758.295842,0.00015,2]
[331113514,1720086650971,-850.44852359,0.00015,2]
[331113515,1720086650982,-151.0,0.00015,2]
[331113516,1720086650992,-151.0,0.00015,2]
[331113517,1720086651002,-1607.060044,0.00015,2]
[331113518,1720086651012,-1607.060044,0.00015,2]
[331113519,1720086651022,-621.54501606,0.00015162,2]
[331113520,1720086651031,-500.0,0.00015219,2]
[331113521,1720086651041,-645.52328473,0.00015219,2]
[331113522,1720086651051,-500.0,0.00015219,2]
[331113523,1720086651060,-500.0,0.00015219,2]
[331113524,1720086651070,-500.0,0.00015219,2]
[331113525,1720086651079,-2415.85,0.00015219,2]
[331113526,1720086651088,-500.0,0.00015219,2]
[331113527,1720086651097,-767.41,0.00015219,2]
[331113528,1720086651107,-14632.49,0.00015219,2]
[331113529,1720086651116,-500.0,0.00015219,2]
[331113530,1720086651125,-964.58,0.00015228,2]
[331113531,1720086651135,-500.0,0.00015228,2]
[331113532,1720086651145,-500.0,0.00015228,2]
[331113533,1720086651154,-1301.84,0.00015228,2]
[331113534,1720086651163,-500.0,0.00015228,2]
[331113535,1720086651172,-500.0,0.00015228,2]
[331113536,1720086651182,-829.69,0.00015228,2]
[331113537,1720086651191,-1166.76,0.00015228,2]
[331113538,1720086651200,-500.0,0.00015228,2]
[331113539,1720086651208,-500.0,0.00015228,2]
[331113540,1720086651217,-712.66,0.00015228,2]
[331113541,1720086651226,-656.39,0.00015228,2]
[331113542,1720086651235,-500.0,0.00015228,2]
[331113543,1720086651244,-435.47838749,0.00015228,2]
[331113544,1720086651254,-500.0,0.00015228,2]
[331113545,1720086651262,-2618.93,0.00015228,2]
[331113546,1720086651271,-500.0,0.00015228,2]
[331113547,1720086651280,-500.0,0.00015228,2]
[331113548,1720086651289,-653.06,0.00015228,2]
[331113549,1720086651298,-417.065872,0.00015228,2]
[331113550,1720086651307,-676.7,0.00015228,2]
[331113551,1720086651316,-1109.14,0.00015228,2]
[331113552,1720086651326,-417.065872,0.00015228,2]
[331113553,1720086651335,-1035.57,0.00015228,2]
[331113554,1720086651343,-500.0,0.00015228,2]
[331113555,1720086651353,-500.0,0.00015228,2]
[331113556,1720086651362,-4679.41,0.00015228,2]
[331113557,1720086651371,-500.0,0.00015228,2]
[331113558,1720086651380,-500.0,0.00015228,2]
[331113559,1720086651389,-500.0,0.00015228,2]
[331113560,1720086651398,-500.0,0.00015228,2]
[331113561,1720086651407,-500.0,0.00015228,2]
[331113562,1720086651416,-1849.64,0.00015228,2]
[331113563,1720086651425,-500.0,0.00015228,2]
[331113564,1720086651434,-776.85,0.00015228,2]
[331113565,1720086651443,-500.0,0.00015228,2]
[331113566,1720086651452,-2509.95,0.00015228,2]
[331113567,1720086651462,-1260.96,0.00015228,2]
[331113568,1720086651471,-151.0,0.00015228,2]
[331113569,1720086651480,-500.0,0.00015228,2]
[331113570,1720086651490,-1120.86,0.00015228,2]
[331113571,1720086651499,-500.0,0.00015228,2]
[331113572,1720086651510,-500.0,0.00015228,2]
[331113573,1720086651519,-151.0,0.00015228,2]
[331113574,1720086651619,-958.75,0.00015228,2]
[331113575,1720086651629,-533.97,0.00015228,2]
[331113576,1720086651639,-4872.74,0.00015228,2]
[331113577,1720086651647,-601.89,0.00015229,2]
[331113578,1720086651656,-500.0,0.00015229,2]
[331113579,1720086651666,-708.25,0.00015229,2]
[331113580,1720086651675,-500.0,0.00015229,2]
[331113581,1720086651685,-500.0,0.00015229,2]
[331113582,1720086651694,-500.0,0.00015229,2]
[331113583,1720086651703,-500.0,0.00015229,2]
[331113584,1720086651711,-500.0,0.00015229,2]
[331113585,1720086651720,-500.0,0.00015229,2]
[331113586,1720086651729,-500.0,0.00015229,2]
[331113587,1720086651738,-504.41982607,0.00015229,2]
[331113588,1720086651747,-500.0,0.00015229,2]
[331113589,1720086651758,-500.0,0.00015229,2]
[331113590,1720086651767,-517.10676978,0.00015229,2]
[331113591,1720086651776,-500.0,0.00015229,2]
[331113592,1720086651788,-504.76238846,0.00015229,2]
[331113593,1720086651797,-500.0,0.00015229,2]
[331113594,1720086651806,-500.0,0.00015229,2]
[331113595,1720086651815,-500.0,0.00015229,2]
[331113596,1720086651824,-500.0,0.00015229,2]
[331113597,1720086651833,-500.0,0.00015229,2]
[331113598,1720086651842,-500.0,0.00015229,2]
[331113599,1720086651851,-500.0,0.00015229,2]
[331113600,1720086651860,-500.0,0.00015229,2]
[331113601,1720086651869,-521.59,0.00015229,2]
[331113602,1720086651879,-500.0,0.00015229,2]
[331113603,1720086651887,-500.0,0.00015229,2]
[331113604,1720086651897,-500.0,0.00015229,2]
[331113605,1720086651906,-500.0,0.00015229,2]
[331113606,1720086651915,-500.0,0.00015229,2]
[331113607,1720086651924,-500.0,0.00015229,2]
[331113608,1720086651934,-208.048076,0.00015229,2]
[331113609,1720086651947,-208.048076,0.00015229,2]
[331113610,1720086651957,-500.0,0.00015229,2]
[331113611,1720086651966,-500.0,0.00015229,2]
[331113612,1720086651977,-835.25,0.00015229,2]
[331113613,1720086651987,-500.0,0.00015229,2]
[331113614,1720086651997,-500.0,0.00015229,2]
[331113615,1720086652009,-500.0,0.00015229,2]
[331113616,1720086652018,-500.0,0.00015229,2]
[331113617,1720086652029,-500.0,0.00015229,2]
[331113618,1720086652039,-500.0,0.00015229,2]
[331113619,1720086652049,-500.0,0.00015229,2]
[331113620,1720086652059,-500.0,0.00015229,2]
[331113621,1720086652068,-500.0,0.00015229,2]
[331113622,1720086652078,-519.1,0.0001523,2]
[331113623,1720086652088,-500.0,0.0001523,2]
[331113624,1720086652097,-500.0,0.0001523,2]
[331113625,1720086652106,-605.42,0.0001523,2]
[331113626,1720086652115,-608.09,0.0001523,2]
[331113627,1720086652124,-500.0,0.0001523,2]
[331113628,1720086652133,-500.0,0.0001523,2]
[331113629,1720086652143,-500.0,0.0001523,2]
[331113630,1720086652152,-500.0,0.0001523,2]
[331113631,1720086652161,-497.439035,0.0001523,2]